fUSD/lending_fUSD_20260304
["ID","MTS","AMOUNT","RATE_DAILY","PERIOD"]
[407638863,1772590239626,-500.0,0.000129,2]
[407638864,1772590239636,-310.56370894,0.000129,2]
[407638865,1772590239646,-500.0,0.000129,2]
[407638866,1772590239655,-500.0,0.000129,2]
[407638867,1772590239664,-500.0,0.000129,2]
[407638868,1772590239674,-500.0,0.000129,2]
[407638869,1772590239683,-214.97731197,0.000129,2]
[407638870,1772590239692,-500.0,0.000129,2]
[407638871,1772590239702,-433.65348897,0.000129,2]
[407638872,1772590239712,-323.55300246,0.000129,2]
[407638873,1772590239721,-151.0,0.00012901,2]
[407638874,1772590239730,-151.0,0.00012901,2]
[407638875,1772590239739,-151.0,0.00012901,2]
[407638876,1772590239748,-151.0,0.00012901,2]
[407638877,1772590239758,-151.0,0.00012901,2]
[407638878,1772590239767,-151.0,0.00012901,2]
[407638879,1772590239777,-151.0,0.00012901,2]
[407638880,1772590239789,-13468.60493044,0.00012901,2]
[407638881,1772590239802,-2791.21611825,0.00012901,2]
[407638882,1772590239817,-304.0,0.00012901,2]
[407638886,1772590240702,-76352.06593996,0.00012901,2]
[407638887,1772590240755,-420.86114321,0.00012901,2]
[407638888,1772590241124,-1309.84074736,0.00012901,2]
[407638889,1772590241176,-1587.711,0.00012901,2]
[407638890,1772590241187,-3229.74116892,0.00012901,2]
[407638891,1772590241198,-425.63,0.00012901,2]
[407638892,1772590241209,-1639.81824446,0.00012901,2]
[407638893,1772590241230,-922.18333418,0.00012901,2]
[407638894,1772590241241,-500.0,0.00012901,2]
[407638899,1772590243397,-2871.35144006,0.00012901,2]
[407638900,1772590243410,-977.36552474,0.00012901,2]
[407638901,1772590243422,-11891.31871872,0.00012901,2]
[407638902,1772590243603,-10072.13946771,0.00012901,2]
[407638913,1772590246234,-358.68932572,0.00012807,2]
[407638914,1772590246243,-39.34567428,0.00012901,2]
[407638915,1772590246286,-32666.85437175,0.00012901,2]
[407638916,1772590246496,-3857.7123853,0.00012901,2]
[407638982,1772590856939,6624.17022808,0.000172,120]
[407638983,1772590890973,20376.0,0.00017,120]
[407638990,1772591431494,-243.0,0.00011423,2]
[407638991,1772591431504,-164.925923,0.00011423,2]
[407638992,1772591431514,-290.75623666,0.00011452,2]
[407638993,1772591431525,-139.87618549,0.00011452,2]
[407638994,1772591431534,-2500.0,0.00011481,2]
[407638995,1772591431546,-500.0,0.00011495,2]
[407638996,1772591431555,-1200.0,0.00011511,2]
[407638997,1772591431564,-2500.0,0.00011512,2]
[407638998,1772591431575,-177.30715191,0.00011512,2]
[407638999,1772591431584,-1000.0,0.00011533,2]
[407639000,1772591431594,-1239.76,0.00011627,2]
[407639001,1772591431603,-449.98088623,0.00011642,2]
[407639002,1772591431612,-379.67408089,0.00011642,2]
[407639003,1772591431621,-1680.56,0.00011782,2]
[407639004,1772591431631,-201.84,0.00011916,2]
[407639005,1772591431640,-380.07434107,0.00011952,2]
[407639006,1772591431649,-500.0,0.00012,2]
[407639008,1772591431659,-3960.19954969,0.000124,3]
[407639009,1772591431671,-645.79236201,0.000124,3]
[407639011,1772591431683,-391.88,0.000124,3]
[407639012,1772591431695,-6295.4180883,0.000124,3]
[407639013,1772591431705,-151.0,0.00012438,2]
[407639015,1772591431714,-151.0,0.00012438,2]
[407639017,1772591431723,-151.0,0.00012438,2]
[407639018,1772591431733,-151.0,0.00012438,2]
[407639019,1772591431742,-151.0,0.00012438,2]
[407639020,1772591431753,-200.0,0.00012438,2]
[407639021,1772591431763,-151.0,0.00012438,2]
[407639022,1772591431773,-151.0,0.00012438,2]
[407639023,1772591431783,-151.0,0.00012438,2]
[407639024,1772591431793,-151.0,0.00012438,2]
[407639025,1772591431803,-151.0,0.00012438,2]
[407639026,1772591431813,-151.0,0.00012438,2]
[407639027,1772591431823,-3793.78,0.00012446,2]
[407639028,1772591431833,-280.88067112,0.00012456,2]
[407639029,1772591431843,-150.0,0.00012519,2]
[407639030,1772591431853,-150.0,0.00012519,2]
[407639031,1772591431863,-150.0,0.00012519,2]
[407639032,1772591431873,-150.0,0.00012519,2]
[407639033,1772591431883,-151.0,0.00012527,2]
[407639034,1772591431892,-578.20924308,0.00012527,2]
[407639035,1772591431902,-721.12765535,0.00012527,2]
[407639036,1772591431912,-174.61919141,0.00012527,2]
[407639037,1772591431921,-500.0,0.00012527,2]
[407639038,1772591431937,-500.0,0.00012527,2]
[407639039,1772591431951,-500.0,0.00012527,2]
[407639040,1772591431961,-500.0,0.00012527,2]
[407639041,1772591431971,-500.0,0.00012527,2]
[407639042,1772591431980,-151.0,0.00012527,2]
[407639043,1772591431989,-500.0,0.00012527,2]
[407639044,1772591431999,-151.0,0.00012527,2]
[407639045,1772591432014,-500.0,0.00012527,2]
[407639046,1772591432023,-151.0,0.00012527,2]
[407639047,1772591432033,-500.0,0.00012527,2]
[407639048,1772591432042,-151.0,0.00012527,2]
[407639049,1772591432052,-500.0,0.00012527,2]
[407639050,1772591432062,-151.0,0.00012527,2]
[407639051,1772591432071,-500.0,0.00012527,2]
[407639052,1772591432080,-151.0,0.00012527,2]
[407639053,1772591432090,-500.0,0.00012527,2]
[407639054,1772591432099,-151.0,0.00012527,2]
[407639055,1772591432108,-151.0,0.00012527,2]
[407639056,1772591432118,-693.3919763,0.00012527,2]
[407639057,1772591432127,-151.0,0.00012527,2]
[407639058,1772591432136,-151.0,0.00012527,2]
[407639059,1772591432145,-151.0,0.00012527,2]
[407639060,1772591432155,-743.50770149,0.00012527,2]
[407639061,1772591432164,-151.0,0.00012527,2]
[407639062,1772591432174,-235.75327194,0.00012527,2]
[407639063,1772591432184,-269.917619,0.00012527,2]
[407639064,1772591432194,-228.16,0.00012533,2]
[407639065,1772591432203,-500.0,0.00012565,2]
[407639066,1772591432218,-150.0,0.0001257,2]
[407639067,1772591432227,-150.0,0.00012574,2]
[407639068,1772591432236,-150.0,0.00012574,2]
[407639069,1772591432245,-201.84,0.00012578,2]
[407639070,1772591432257,-719.04747942,0.00012582,2]
[407639071,1772591432266,-151.0,0.00012582,2]
[407639072,1772591432276,-700.0,0.000126,4]
[407639073,1772591432287,-165.29,0.000126,2]
[407639074,1772591432296,-500.0,0.00012613,2]
[407639075,1772591432305,-2500.0,0.00012613,2]
[407639076,1772591432315,-500.0,0.00012613,2]
[407639077,1772591432324,-2500.0,0.00012613,2]
[407639078,1772591432335,-200.0,0.00012629,2]
[407639079,1772591432346,-200.0,0.00012629,2]
[407639080,1772591432355,-745.65223616,0.00012637,2]
[407639081,1772591432365,-151.0,0.00012637,2]
[407639082,1772591432375,-692.0,0.00012662,2]
[407639083,1772591432386,-773.2413689,0.00012692,2]
[407639084,1772591432395,-151.0,0.00012692,2]
[407639085,1772591432404,-233.93854765,0.00012699,2]
[407639086,1772591432416,-153.50183837,0.000127,2]
[407639087,1772591432431,-521.1771689,0.000127,4]
[407639089,1772591437622,-540.44625447,0.000127,4]
[407639090,1772591437783,-438.37657663,0.000127,4]
[407639091,1772591437792,-2000.0,0.000127,2]
[407639092,1772591437802,-2000.0,0.000127,2]
[407639093,1772591437812,-196.29458997,0.00012701,2]
[407639094,1772591437821,-1524.73163832,0.00012701,2]
[407639095,1772591437831,-1356.32885633,0.00012701,2]
[407639096,1772591437840,-313.85315997,0.00012701,2]
[407639097,1772591437851,-2500.0,0.00012701,2]
[407639098,1772591437860,-801.85129955,0.00012747,2]
[407639099,1772591437871,-151.0,0.00012747,2]
[407639100,1772591437880,-325.13458027,0.00012769,2]
[407639101,1772591437890,-795.302,0.00012779,2]
[407639102,1772591437900,-175.78923529,0.00012779,2]
[407639103,1772591437909,-1336.11,0.00012793,2]
[407639104,1772591437919,-1000.0,0.000128,2]
[407639105,1772591437929,-2000.0,0.000128,2]
[407639106,1772591437938,-2000.0,0.000128,2]
[407639107,1772591437948,-163.0,0.000128,2]
[407639108,1772591437958,-2300.0,0.000128,4]
[407639109,1772591437967,-226.48710172,0.000128,2]
[407639110,1772591437978,-282.76098285,0.000128,2]
[407639111,1772591437988,-500.0,0.000128,2]
[407639112,1772591437997,-150.48411838,0.000128,2]
[407639113,1772591438011,-500.0,0.000128,2]
[407639114,1772591438022,-500.0,0.000128,2]
[407639115,1772591438031,-467.39459626,0.000128,2]
[407639116,1772591438042,-532.54880944,0.000128,2]
[407639117,1772591438052,-259400.48258692,0.00012801,2]
[407639118,1772591438065,-1833.21659356,0.00012801,2]
[407639119,1772591438076,-1216.08799223,0.00012801,2]
[407639120,1772591438090,-1734.29913426,0.00012801,2]
[407639121,1772591438103,-6330.09649591,0.00012801,2]
[407639122,1772591438115,-580.23789574,0.00012801,2]
[407639123,1772591438127,-1680.67196813,0.00012801,2]
[407639126,1772591439761,-4847.26095819,0.00012801,2]
[407639127,1772591440300,-186311.85515811,0.00012801,2]
[407639128,1772591440312,-2756.41692105,0.00012801,2]
[407639136,1772591445603,-509.04527717,0.00012801,2]
[407639141,1772591916665,-166.66,0.00011255,2]
[407639142,1772591916693,-166.66,0.00011492,2]
[407639143,1772591916734,-1504.8,0.00011507,2]
[407639144,1772591916764,-250.0,0.00011519,2]
[407639145,1772591916792,-5000.0,0.00011531,2]
[407639146,1772591916822,-2500.0,0.00011554,2]
[407639147,1772591916853,-500.0,0.00011602,2]
[407639148,1772591916881,-5000.0,0.00011655,2]
[407639149,1772591916906,-257.09258846,0.00011655,2]
[407639150,1772591916933,-191.8,0.000117,2]
[407639151,1772591916961,-166.66,0.00011729,2]
[407639152,1772591916988,-2500.0,0.00011914,2]
[407639153,1772591917019,-2616.54770962,0.00011914,2]
[407639154,1772591917045,-166.66,0.00011966,2]
[407639155,1772591917071,-166.66,0.00012203,2]
[407639156,1772591917098,-578.20924308,0.00012424,2]
[407639157,1772591917124,-166.66,0.0001244,2]
[407639158,1772591917151,-1200.0,0.0001256,2]
[407639159,1772591917177,-300.0,0.0001256,2]
[407639160,1772591917204,-1478.72045884,0.00012561,2]
[407639252,1772592631656,-245.0,0.00011608,2]
[407639253,1772592631666,-511.12828161,0.00011608,2]
[407639254,1772592631676,-3679.94,0.00011625,2]
[407639255,1772592631686,-1600.0,0.0001176,2]
[407639256,1772592631695,-953.0,0.00011774,2]
[407639257,1772592631706,-2500.0,0.00011775,2]
[407639258,1772592631715,-500.0,0.00011789,2]
[407639259,1772592631726,-2879.99,0.00011818,2]
[407639260,1772592631737,-2500.0,0.00011899,2]
[407639261,1772592631746,-396.93544913,0.00011915,2]
[407639262,1772592631762,-2018.5020399,0.00011915,2]
[407639263,1772592631817,-1264.50251097,0.00011915,2]
[407639265,1772592631826,-166.68,0.00011923,2]
[407639267,1772592631836,-300.0,0.00011999,2]
[407639269,1772592631845,-500.0,0.00012,2]
[407639271,1772592631855,-500.0,0.00012129,2]
[407639273,1772592631865,-3679.94,0.00012206,2]
[407639275,1772592631874,-578.20924308,0.00012297,2]
[407639277,1772592631884,-3679.94,0.00012497,2]
[407639279,1772592631894,-150.0,0.00012509,2]
[407639281,1772592631904,-200.0,0.00012548,3]
[407639283,1772592631913,-174.61919141,0.00012553,2]
[407639284,1772592631923,-693.3919763,0.00012553,2]
[407639287,1772592631932,-151.0,0.00012553,2]
[407639290,1772592631941,-235.75327194,0.00012553,2]
[407639293,1772592631950,-636.241,0.0001256,2]
[407639296,1772592631959,-24468.73024116,0.00012561,2]
[407639299,1772592631968,-500.0,0.00012598,2]
[407639302,1772592631977,-500.0,0.000126,4]
[407639305,1772592631986,-150.0,0.000126,2]
[407639307,1772592631995,-3388.2058,0.00012601,2]
[407639310,1772592632005,-2500.0,0.00012601,2]
[407639313,1772592632014,-719.04747942,0.00012608,2]
[407639316,1772592632022,-151.0,0.00012608,2]
[407639319,1772592632032,-1372.25847447,0.00012618,2]
[407639321,1772592632050,-274.621515,0.00012618,2]
[407639322,1772592632061,-2214.37937967,0.00012648,2]
[407639323,1772592632070,-745.65223616,0.00012663,2]
[407639324,1772592632080,-151.0,0.00012663,2]
[407639325,1772592632090,-252.67365585,0.00012693,2]
[407639326,1772592632100,-200.0,0.00012693,2]
[407639327,1772592632109,-500.0,0.00012693,2]
[407639328,1772592632119,-721.12765535,0.00012693,2]
[407639329,1772592632129,-500.0,0.00012693,2]
[407639330,1772592632140,-151.0,0.00012693,2]
[407639331,1772592632150,-500.0,0.00012693,2]
[407639332,1772592632159,-151.0,0.00012693,2]
[407639333,1772592632169,-500.0,0.00012693,2]
[407639334,1772592632178,-151.0,0.00012693,2]
[407639335,1772592632188,-1000.0,0.00012693,2]
[407639336,1772592632198,-500.0,0.00012693,2]
[407639337,1772592632207,-151.0,0.00012693,2]
[407639338,1772592632217,-1000.0,0.00012693,2]
[407639339,1772592632227,-500.0,0.00012693,2]
[407639340,1772592632236,-151.0,0.00012693,2]
[407639341,1772592632247,-1000.0,0.00012693,2]
[407639342,1772592632256,-500.0,0.00012693,2]
[407639343,1772592632265,-250.0,0.00012693,2]
[407639344,1772592632275,-151.0,0.00012693,2]
[407639345,1772592632285,-1000.0,0.00012693,2]
[407639346,1772592632294,-500.0,0.00012693,2]
[407639347,1772592632304,-250.0,0.00012693,2]
[407639348,1772592632313,-151.0,0.00012693,2]
[407639349,1772592632323,-1000.0,0.00012693,2]
[407639350,1772592632332,-500.0,0.00012693,2]
[407639351,1772592632342,-250.0,0.00012693,2]
[407639352,1772592632352,-151.0,0.00012693,2]
[407639353,1772592632361,-1000.0,0.00012693,2]
[407639354,1772592632370,-500.0,0.00012693,2]
[407639355,1772592632380,-250.0,0.00012693,2]
[407639356,1772592632390,-151.0,0.00012693,2]
[407639357,1772592632404,-1000.0,0.00012693,2]
[407639358,1772592632413,-500.0,0.00012693,2]
[407639359,1772592632423,-250.0,0.00012693,2]
[407639360,1772592632433,-151.0,0.00012693,2]
[407639361,1772592632443,-1000.0,0.00012693,2]
[407639362,1772592632453,-250.0,0.00012693,2]
[407639363,1772592632463,-151.0,0.00012693,2]
[407639364,1772592632472,-250.0,0.00012693,2]
[407639365,1772592632482,-250.0,0.00012693,2]
[407639366,1772592632493,-250.0,0.00012693,2]
[407639367,1772592632503,-250.0,0.00012693,2]
[407639368,1772592632512,-250.0,0.00012693,2]
[407639369,1772592632523,-250.0,0.00012693,2]
[407639370,1772592632533,-250.0,0.00012693,2]
[407639371,1772592632546,-250.0,0.00012693,2]
[407639372,1772592632556,-322.55462567,0.00012693,2]
[407639373,1772592632565,-151.0,0.00012693,2]
[407639374,1772592632575,-151.0,0.00012693,2]
[407639375,1772592632586,-151.0,0.00012693,2]
[407639376,1772592632595,-151.0,0.00012693,2]
[407639377,1772592632608,-151.0,0.00012693,2]
[407639378,1772592632619,-151.0,0.00012693,2]
[407639379,1772592632628,-151.0,0.00012693,2]
[407639380,1772592632639,-151.0,0.00012693,2]
[407639381,1772592632649,-151.0,0.00012693,2]
[407639382,1772592632659,-151.0,0.00012693,2]
[407639383,1772592632669,-151.0,0.00012693,2]
[407639384,1772592632679,-269.917619,0.00012693,2]
[407639385,1772592632689,-743.50770149,0.00012693,2]
[407639386,1772592632701,-1000.0,0.000127,4]
[407639387,1772592632710,-155.0,0.000127,2]
[407639388,1772592632720,-500.0,0.000127,2]
[407639389,1772592632730,-377.17621738,0.000127,2]
[407639390,1772592632739,-500.0,0.000127,2]
[407639391,1772592632749,-197.93268799,0.000127,2]
[407639392,1772592632759,-158.54097121,0.000127,2]
[407639393,1772592632769,-1000.0,0.00012701,2]
[407639394,1772592632780,-4778.64910349,0.00012701,2]
[407639395,1772592632793,-8895.48127134,0.00012701,2]
[407639396,1772592632804,-43455.40942717,0.00012701,2]
[407639397,1772592632815,-105959.91967236,0.00012701,2]
[407639398,1772592632826,-1254.41808677,0.00012701,2]
[407639402,1772592638270,-879.53530119,0.00012701,2]
[407639403,1772592638282,-1164.20361154,0.00012701,2]
[407639404,1772592638297,-431.69598331,0.00012701,2]
[407639406,1772592638375,-3150.75,0.00012701,2]
[407639407,1772592638389,-14087.60567993,0.00012701,2]
[407639408,1772592638401,-1323.45921772,0.00012701,2]
[407639409,1772592638429,-534.74842781,0.00012701,2]
[407639410,1772592638440,-1557.46660535,0.00012701,2]
[407639411,1772592638451,-1337.35,0.00012701,2]
[407639412,1772592638462,-799.8506,0.00012701,2]
[407639413,1772592638473,-1000.51193,0.00012701,2]
[407639414,1772592638486,-1018.59929685,0.00012701,2]
[407639415,1772592638497,-489.55517555,0.00012701,2]
[407639452,1772592639906,-265.1286,0.00012701,2]
[407639453,1772592639956,-288.472427,0.00012701,2]
[407639454,1772592640011,-408.14986507,0.00012701,2]
[407639455,1772592640022,-620.59800207,0.00012701,2]
[407639456,1772592640034,-333.26194966,0.00012701,2]
[407639457,1772592640047,-506.37642362,0.00012701,2]
[407639458,1772592640431,-175650.26088474,0.00012701,2]
[407639459,1772592640485,-265.96,0.00012701,2]
[407639467,1772592642809,-539.44516753,0.00012701,2]
[407639495,1772592645665,-8616.00667959,0.00012701,2]
[407639496,1772592645684,-942.9,0.00012701,2]
[407639523,1772592646321,-9312.41052874,0.00012701,2]
[407639525,1772592646332,-13616.60897377,0.00012701,2]
[407639528,1772592646343,-5917.80000008,0.00012701,2]
[407639648,1772593200847,1430.57372157,8e-05,2]
[407639649,1772593200868,2624.81696607,8e-05,2]
[407639653,1772593337449,393.04654433,7.888e-05,2]
[407639695,1772593774109,-527.93219284,9.003e-05,2]
[407639696,1772593774131,-657.57261614,9.003e-05,2]
[407639697,1772593774152,-505.49393616,9.003e-05,2]
[407639698,1772593774173,-164.52,9.144e-05,2]
[407639699,1772593774196,-200.0,9.638e-05,2]
[407639700,1772593774216,-634.35312277,9.903e-05,2]
[407639718,1772593831905,-4365.64687723,9.903e-05,2]
[407639719,1772593831915,-651.61953208,0.000104,5]
[407639720,1772593831932,-298.86,0.000104,5]
[407639721,1772593831943,-80.52046792,0.000104,5]
[407639722,1772593831953,-250.0,0.00010894,2]
[407639723,1772593831963,-182.53,0.00011073,2]
[407639724,1772593831971,-186.71,0.00011285,2]
[407639725,1772593831981,-500.0,0.00011315,2]
[407639726,1772593831992,-300.0,0.0001144,2]
[407639727,1772593832001,-191.91630401,0.00011497,2]
[407639728,1772593832013,-5000.00113981,0.00011497,2]
[407639729,1772593832024,-5243.97255618,0.00011497,2]
[407639730,1772593832033,-500.0,0.00011562,2]
[407639731,1772593832042,-295.18446532,0.00011589,2]
[407639732,1772593832053,-1557.23553468,0.00011589,2]
[407639733,1772593832063,-1500.0,0.00011695,2]
[407639734,1772593832072,-150.0,0.0001175,2]
[407639735,1772593832081,-500.0,0.00011808,2]
[407639736,1772593832090,-186.71,0.00011912,2]
[407639737,1772593832099,-150.0,0.00011999,2]
[407639738,1772593832109,-679.86134487,0.00012,2]
[407639739,1772593832118,-500.0,0.00012,2]
[407639740,1772593832129,-500.0,0.00012,2]
[407639741,1772593832140,-505.79542106,0.00012,2]
[407639742,1772593832149,-502.0422901,0.00012,2]
[407639743,1772593832158,-500.0,0.00012,2]
[407639744,1772593832167,-503.11179699,0.00012,2]
[407639745,1772593832176,-514.43382249,0.00012,2]
[407639746,1772593832185,-502.32777902,0.00012,2]
[407639747,1772593832196,-500.0,0.00012,2]
[407639748,1772593832206,-3298.62709109,0.00012347,2]
[407639749,1772593832216,-150.0,0.00012347,14]
[407639750,1772593832226,-500.0,0.00012347,2]
[407639751,1772593832236,-350.0,0.00012371,2]
[407639752,1772593832246,-2036.86593809,0.00012401,2]
[407639753,1772593832257,-76662.84073968,0.00012401,2]
[407639756,1772593837985,-3900.23434155,0.00012401,2]
[407639760,1772593840115,-6982.18758068,0.00012401,2]
[407639761,1772593840125,-24353.5459,0.00012401,2]
[407639762,1772593840135,-578.20924308,0.00012447,2]
[407639763,1772593840144,-508.993,0.000125,2]
[407639764,1772593840154,-2500.0,0.00012501,2]
[407639765,1772593840163,-3943.52545845,0.00012501,2]
[407639766,1772593840172,-350.0,0.00012519,2]
[407639767,1772593840182,-186.71,0.00012539,2]
[407639768,1772593840191,-500.0,0.00012548,2]
[407639769,1772593840205,-1323.7354381,0.00012548,2]
[407639770,1772593840214,-240.29382559,0.00012548,2]
[407639771,1772593840223,-200.0,0.00012569,2]
[407639772,1772593840232,-350.0,0.00012582,2]
[407639773,1772593840242,-721.12765535,0.00012594,2]
[407639774,1772593840251,-174.61919141,0.00012594,2]
[407639775,1772593840261,-500.0,0.00012594,2]
[407639776,1772593840270,-500.0,0.00012594,2]
[407639777,1772593840281,-500.0,0.00012594,2]
[407639778,1772593840292,-500.0,0.00012594,2]
[407639779,1772593840303,-500.0,0.00012594,2]
[407639780,1772593840312,-500.0,0.00012594,2]
[407639781,1772593840321,-151.0,0.00012594,2]
[407639782,1772593840331,-500.0,0.00012594,2]
[407639783,1772593840340,-500.0,0.00012594,2]
[407639784,1772593840350,-151.0,0.00012594,2]
[407639785,1772593840359,-151.0,0.00012594,2]
[407639786,1772593840369,-500.0,0.00012594,2]
[407639787,1772593840379,-151.0,0.00012594,2]
[407639788,1772593840388,-275.3885982,0.00012594,2]
[407639789,1772593840397,-151.0,0.00012594,2]
[407639790,1772593840406,-500.0,0.00012594,2]
[407639791,1772593840415,-151.0,0.00012594,2]
[407639792,1772593840425,-151.0,0.00012594,2]
[407639793,1772593840434,-151.0,0.00012594,2]
[407639794,1772593840444,-151.0,0.00012594,2]
[407639795,1772593840453,-151.0,0.00012594,2]
[407639796,1772593840463,-693.3919763,0.00012594,2]
[407639797,1772593840473,-500.0,0.00012594,2]
[407639798,1772593840482,-151.0,0.00012594,2]
[407639799,1772593840491,-200.0,0.00012594,2]
[407639800,1772593840501,-151.0,0.00012594,2]
[407639801,1772593840511,-151.0,0.00012594,2]
[407639802,1772593840521,-151.0,0.00012594,2]
[407639803,1772593840532,-743.50770149,0.00012594,2]
[407639804,1772593840543,-151.0,0.00012594,2]
[407639805,1772593840553,-235.75327194,0.00012594,2]
[407639806,1772593840563,-269.917619,0.00012594,2]
[407639807,1772593840573,-151.0,0.00012598,2]
[407639808,1772593840583,-400.0,0.000126,4]
[407639809,1772593840593,-500.0,0.000126,2]
[407639810,1772593840603,-222.51012057,0.000126,2]
[407639811,1772593840614,-500.0,0.000126,2]
[407639812,1772593840623,-500.0,0.000126,2]
[407639813,1772593840632,-500.0,0.000126,2]
[407639814,1772593840642,-500.0,0.000126,2]
[407639815,1772593840651,-500.0,0.000126,2]
[407639816,1772593840661,-500.0,0.000126,2]
[407639817,1772593840670,-500.0,0.000126,2]
[407639818,1772593840678,-8442.5834198,0.00012601,2]
[407639822,1772593843124,-1101.1049965,0.00012601,2]
[407639888,1772594799031,168.1,0.00011,30]
[407639889,1772594973139,-1160.525434,0.00010621,2]
[407639890,1772594973159,-210.27,0.00010674,2]
[407639891,1772594973181,-200.0,0.00010945,2]
[407639892,1772594973202,-166.66,0.00010959,2]
[407639893,1772594973226,-151.0,0.00010997,2]
[407639894,1772594973251,-151.0,0.00010997,2]
[407639895,1772594973273,-193.35056413,0.00010997,2]
[407639896,1772594973299,-271.08763187,0.00010999,2]
[407639906,1772595032047,-228.91236813,0.00010999,2]
[407639907,1772595032056,-324.32305214,0.00010999,2]
[407639908,1772595032068,-175.67694786,0.00010999,2]
[407639909,1772595032077,-500.0,0.00010999,2]
[407639910,1772595032086,-37.07305714,0.00010999,2]
[407639911,1772595032131,-378.23771447,0.00010999,2]
[407639912,1772595032226,-84.68922839,0.00010999,2]
[407639913,1772595032235,-500.0,0.00010999,2]
[407639914,1772595032244,-201.54494055,0.00010999,2]
[407639915,1772595032254,-500.0,0.00011,2]
[407639916,1772595032264,-2500.0,0.00011,2]
[407639917,1772595032273,-53953.72627943,0.00011,2]
[407639918,1772595032284,-42865.33362122,0.00011,2]
[407639919,1772595032296,-17720.4574391,0.00011,2]
[407639925,1772595038068,-430.78105385,0.00011,2]
[407639926,1772595038080,-17093.75265726,0.00011,2]
[407639927,1772595038092,-3729.08765197,0.00011,2]
[407639928,1772595038103,-2246.83918624,0.00011,2]
[407639929,1772595038114,-3508.90627672,0.00011,2]
[407639930,1772595038125,-610.8393372,0.00011,2]
[407639931,1772595038177,-2133.02571672,0.00011,2]
[407639932,1772595038230,-81347.68813023,0.00011,2]
[407639933,1772595038239,-2500.0,0.00011059,2]
[407639934,1772595038249,-2500.0,0.00011059,2]
[407639935,1772595038262,-166.66,0.00011086,2]
[407639936,1772595038271,-2263.99922438,0.00011099,2]
[407639937,1772595038281,-10071.15,0.00011169,2]
[407639938,1772595038291,-1409.93682119,0.00011169,2]
[407639939,1772595038302,-166.66,0.00011213,2]
[407639940,1772595038312,-500.0,0.00011336,2]
[407639941,1772595038322,-166.66,0.00011339,2]
[407639942,1772595038332,-166.66,0.00011466,2]
[407639943,1772595038344,-373.21196305,0.00011471,2]
[407639944,1772595038354,-168.0,0.00011471,2]
[407639945,1772595038363,-1254.0,0.00011507,2]
[407639946,1772595038373,-166.66,0.00011593,2]
[407639947,1772595038383,-800.0,0.000116,4]
[407639948,1772595038394,-300.26307298,0.00011683,2]
[407639950,1772595038403,-500.0,0.000117,2]
[407639951,1772595038413,-1600.0,0.000117,4]
[407639953,1772595038427,-1787.98024617,0.00011742,2]
[407639955,1772595038437,-2263.99922433,0.00011754,2]
[407639957,1772595038447,-502.95499374,0.00011793,2]
[407639959,1772595038456,-200.0,0.00011793,2]
[407639961,1772595038466,-500.0,0.00011793,2]
[407639962,1772595038475,-151.0,0.00011793,2]
[407639964,1772595038485,-151.0,0.00011793,2]
[407639966,1772595038495,-151.0,0.00011793,2]
[407639968,1772595038505,-151.0,0.00011793,2]
[407639969,1772595038515,-151.0,0.00011793,2]
[407639971,1772595038525,-151.0,0.00011793,2]
[407639974,1772595038535,-151.0,0.00011793,2]
[407639977,1772595038544,-151.0,0.00011793,2]